fUST/lending_fUST_20260214
["ID","MTS","AMOUNT","RATE_DAILY","PERIOD"]
[405351907,1771054511844,1000.0,0.00014247,2]
[405351908,1771054513821,300.0,0.00013673,2]
[405351909,1771054513882,600.0,0.00014221,2]
[405351910,1771054513933,900.0,0.00014768,2]
[405351911,1771054514091,340.55280025,0.00015316,2]
[405351912,1771054516972,500.0,0.00013273,2]
[405351913,1771054810903,500.0,0.00013273,2]
[405351914,1771054810955,1000.0,0.00013821,2]
[405351915,1771054811026,432.78382739,0.00014368,2]
[405351916,1771054811052,1067.21617261,0.00014368,2]
[405351917,1771054811083,2000.0,0.00014916,2]
[405351918,1771054811118,1500.0,0.00015464,2]
[405351919,1771054814253,500.0,0.00013699,2]
[405351920,1771054815794,507.34046526,0.00013699,2]
[405351921,1771054867722,500.0,0.00013273,2]
[405351922,1771054867779,1000.0,0.00013821,2]
[405351923,1771054867836,1500.0,0.00014368,2]
[405351924,1771054867897,1030.2582346,0.00014916,2]
[405351925,1771054887869,395.18512753,0.00013699,2]
[405351926,1771054887895,104.81487247,0.00013699,2]
[405351927,1771054887941,774.98708112,0.00014247,2]
[405351928,1771054932407,500.0,0.00013699,2]
[405351929,1771054938409,1000.0,0.00014247,2]
[405351930,1771055117506,150.0,0.00030137,120]
[405351931,1771055167150,1004.19545126,0.00014247,2]
[405351932,1771055167200,500.0,0.00013699,2]
[405351933,1771055192200,403.40117922,0.00014247,2]
[405351934,1771055192260,319.63030639,0.00013699,2]
[405351935,1771055192290,180.36969361,0.00013699,2]
[405351936,1771055194697,500.62351729,0.00013699,2]
[405351938,1771055224825,319.0067891,0.0002,2]
[405351939,1771055406831,500.0,0.00013699,2]
[405351940,1771055406865,1008.02709033,0.00014247,2]
[405351941,1771055411023,500.0,0.00013273,2]
[405351942,1771055411086,813.60155111,0.00013821,2]
[405351961,1771055431978,-388.66220874,0.00022794,2]
[405351962,1771055431988,-1375.74431102,0.00023024,2]
[405351963,1771055431999,-205.537072,0.0002463,2]
[405351964,1771055432009,-243.3042055,0.00024658,2]
[405351965,1771055432018,-200.0,0.00024658,2]
[405351966,1771055432028,-300.0,0.00025196,2]
[405351968,1771055432038,-300.0,0.00025196,2]
[405351970,1771055432048,-300.0,0.00025196,2]
[405351972,1771055432058,-1200.0,0.00025196,2]
[405351974,1771055432067,-300.0,0.00025196,2]
[405351976,1771055432077,-500.0,0.00025197,2]
[405351978,1771055432088,-500.0,0.00025197,2]
[405351980,1771055432098,-500.0,0.00025197,2]
[405351981,1771055432108,-500.0,0.00025197,2]
[405351982,1771055432118,-181.67809483,0.00025197,2]
[405351983,1771055432129,-500.0,0.00025197,2]
[405351984,1771055432140,-500.0,0.00025197,2]
[405351985,1771055432150,-500.0,0.00025197,2]
[405351986,1771055432160,-500.0,0.00025197,2]
[405351987,1771055432169,-500.0,0.00025197,2]
[405351988,1771055432179,-500.0,0.00025197,2]
[405351989,1771055432189,-500.0,0.00025197,2]
[405351990,1771055432198,-500.0,0.00025197,2]
[405351991,1771055432209,-500.0,0.00025197,2]
[405351992,1771055432220,-500.0,0.00025197,2]
[405351993,1771055432232,-500.0,0.00025197,2]
[405351994,1771055432243,-500.0,0.00025197,2]
[405351995,1771055432253,-500.0,0.00025197,2]
[405351996,1771055432263,-500.0,0.00025197,2]
[405351997,1771055432273,-500.0,0.00025197,2]
[405351998,1771055432283,-500.0,0.00025197,2]
[405351999,1771055432293,-641.10635811,0.00025197,2]
[405352000,1771055432304,-500.0,0.00025197,2]
[405352001,1771055432316,-511.99766424,0.00025197,2]
[405352002,1771055432327,-500.0,0.00025197,2]
[405352003,1771055432338,-595.55735646,0.00025197,2]
[405352004,1771055432347,-500.0,0.00025197,2]
[405352005,1771055432357,-500.0,0.00025197,2]
[405352006,1771055432367,-500.0,0.00025197,2]
[405352007,1771055432377,-500.0,0.00025197,2]
[405352008,1771055432527,-451.59243787,0.00025197,2]
[405352009,1771055432537,-500.0,0.00025197,2]
[405352010,1771055432547,-500.0,0.00025197,2]
[405352011,1771055432557,-500.0,0.00025197,2]
[405352012,1771055432567,-500.0,0.00025197,2]
[405352013,1771055432577,-500.0,0.00025197,2]
[405352014,1771055432587,-500.0,0.00025197,2]
[405352015,1771055432597,-500.0,0.00025197,2]
[405352016,1771055432607,-500.0,0.00025197,2]
[405352017,1771055432617,-500.0,0.00025197,2]
[405352018,1771055432627,-500.0,0.00025197,2]
[405352019,1771055432637,-500.0,0.00025197,2]
[405352020,1771055432647,-500.0,0.00025197,2]
[405352021,1771055432657,-500.0,0.00025197,2]
[405352022,1771055432666,-500.0,0.00025197,2]
[405352023,1771055432677,-271.7435085,0.00025197,2]
[405352024,1771055432686,-500.0,0.00025197,2]
[405352025,1771055432697,-500.0,0.00025197,2]
[405352026,1771055432706,-500.0,0.00025197,2]
[405352027,1771055432717,-339.00320701,0.00025197,2]
[405352028,1771055432727,-500.0,0.00025197,2]
[405352029,1771055432738,-500.0,0.00025197,2]
[405352030,1771055432747,-500.0,0.00025197,2]
[405352031,1771055432757,-500.0,0.00025197,2]
[405352032,1771055432766,-500.0,0.00025197,2]
[405352033,1771055432776,-500.0,0.00025197,2]
[405352034,1771055432786,-500.0,0.00025197,2]
[405352035,1771055432796,-500.0,0.00025197,2]
[405352036,1771055432805,-500.0,0.00025197,2]
[405352037,1771055432815,-500.0,0.00025197,2]
[405352038,1771055432825,-500.0,0.00025197,2]
[405352039,1771055432834,-500.0,0.00025197,2]
[405352040,1771055432844,-500.0,0.00025197,2]
[405352041,1771055432852,-500.0,0.00025197,2]
[405352042,1771055432862,-500.0,0.00025197,2]
[405352043,1771055432871,-16866.97340027,0.00025198,2]
[405352044,1771055432881,-500.0,0.00025199,2]
[405352045,1771055432890,-10666.19768636,0.00025201,2]
[405352053,1771055438201,-225.18586236,0.00025196,2]
[405352055,1771055438210,-4702.95272373,0.00025201,2]
[405352060,1771055440202,-4630.84958991,0.00025201,2]
[405352061,1771055440211,-500.0,0.00025473,2]
[405352062,1771055440220,-500.0,0.00025747,2]
[405352063,1771055440229,-500.0,0.00025899,2]
[405352064,1771055440239,-178.13049063,0.00025985,2]
[405352065,1771055440247,-320.31424825,0.00025985,2]
[405352066,1771055440256,-314.05351668,0.00025985,2]
[405352067,1771055440265,-358.55938647,0.00025985,2]
[405352068,1771055440275,-500.0,0.00026001,2]
[405352069,1771055440284,-500.0,0.00026021,2]
[405352070,1771055440293,-4109.5518947,0.00026106,2]
[405352071,1771055440301,-5550.7908119,0.00026233,2]
[405352072,1771055440310,-431.36548199,0.00026295,2]
[405352073,1771055440319,-1395.31304,0.00026718,2]
[405352074,1771055440327,-175.903003,0.00027143,2]
[405352075,1771055440336,-303.0,0.0002729,2]
[405352076,1771055440345,-265.0,0.0002729,2]
[405352077,1771055440353,-305.85128887,0.00027353,2]
[405352078,1771055440362,-167.84358607,0.00027353,2]
[405352079,1771055440371,-302.11845492,0.00027353,2]
[405352080,1771055440380,-536.56237594,0.00027353,2]
[405352081,1771055440390,-5242.0,0.00027397,5]
[405352082,1771055440399,-1680.0,0.00027413,2]
[405352083,1771055440408,-436.43,0.00027413,2]
[405352084,1771055440423,-191.06899267,0.00027596,7]
[405352085,1771055440432,-285.92315957,0.00027596,7]
[405352086,1771055440444,-153.0,0.00028126,7]
[405352087,1771055440453,-168.0,0.00028236,2]
[405352088,1771055440462,-168.0,0.00028276,2]
[405352089,1771055440471,-459.95,0.0002838,10]
[405352090,1771055440481,-551.94,0.0002839,10]
[405352091,1771055440490,-1000.0,0.000284,2]
[405352092,1771055440499,-168.0,0.00028574,2]
[405352093,1771055440508,-500.0,0.00028705,7]
[405352094,1771055440518,-168.0,0.00028739,2]
[405352095,1771055440527,-168.0,0.00028748,2]
[405352096,1771055440539,-168.0,0.00028792,2]
[405352097,1771055440549,-154.95,0.000288,7]
[405352098,1771055440559,-168.0,0.00028883,2]
[405352099,1771055440569,-153.0,0.00028885,7]
[405352100,1771055440579,-153.0,0.00028885,7]
[405352101,1771055440589,-153.0,0.00028885,7]
[405352102,1771055440598,-153.0,0.00028885,7]
[405352103,1771055440608,-237.64904415,0.00028885,7]
[405352104,1771055440617,-168.0,0.00028993,2]
[405352105,1771055440627,-217620.13458638,0.00029,2]
[405352116,1771055446065,-150.0,0.00025199,2]
[405352117,1771055446076,-294.87201758,0.00027199,2]
[405352118,1771055446087,-1613.24442044,0.00029,2]
[405352128,1771055466491,500.0,0.00013699,2]
[405352129,1771055466523,594.56935406,0.00014247,2]
[405352130,1771055467766,500.0,0.00013273,2]
[405352131,1771055467818,823.60394197,0.00013821,2]
[405352132,1771055470830,504.6362179,0.00013273,2]
[405352133,1771055481371,500.0,0.00013699,2]
[405352134,1771055481424,420.06653808,0.00014247,2]
[405352135,1771055484494,500.0,0.00013699,2]
[405352136,1771055484553,546.61158761,0.00014247,2]
[405352137,1771055484689,509.13293224,0.00013273,2]
[405352147,1771055790307,221.1882638,0.00013699,2]
[405352148,1771055792853,500.0,0.00013273,2]
[405352149,1771055792885,457.44277415,0.00013821,2]
[405352150,1771055793770,500.0,0.00014247,2]
[405352151,1771055793804,500.0,0.00013699,2]
[405352152,1771055798155,500.0,0.00013699,2]
[405352153,1771055798210,1010.83909644,0.00014247,2]
[405352154,1771055884915,290.73078283,0.00013821,2]
[405352155,1771055884957,500.0,0.00013273,2]
[405352156,1771055924228,1181.88,0.000198,2]
[405352157,1771056072316,500.0,0.00013699,2]
[405352158,1771056072342,1000.0,0.00014247,2]
[405352159,1771056072399,227.05845482,0.00014795,2]
[405352160,1771056191690,10000.0,0.00019,25]
[405352162,1771056398351,185.46574592,0.00013273,2]
[405352237,1771056639013,-597.81664544,0.00021562,2]
[405352239,1771056639024,-3000.0,0.00022,2]
[405352241,1771056639036,-300.0,0.00026695,2]
[405352243,1771056639047,-564.40872769,0.00026696,2]
[405352245,1771056639058,-300.0,0.00026847,2]
[405352247,1771056639073,-285.15375864,0.00026847,2]
[405352255,1771056639146,-14.84624136,0.00026847,2]
[405352257,1771056639157,-300.0,0.00026847,2]
[405352259,1771056639168,-300.0,0.00026847,2]
[405352261,1771056639179,-1200.0,0.00026847,2]
[405352263,1771056639188,-177.28415072,0.00026848,2]
[405352265,1771056639198,-500.0,0.00026848,2]
[405352267,1771056639207,-515.67848423,0.00026848,2]
[405352269,1771056639216,-171.74266932,0.00026848,2]
[405352395,1771056640388,-328.25733068,0.00026848,2]
[405352397,1771056640397,-251.91696623,0.00026848,2]
[405352415,1771056640686,-248.08303377,0.00026848,2]
[405352417,1771056640695,-327.95471532,0.00026848,2]
[405352419,1771056640704,-196.86038983,0.00026848,2]
[405352421,1771056640714,-466.81788485,0.00026848,2]
[405352423,1771056640723,-556.88862936,0.00026848,2]
[405352425,1771056640733,-697.65652,0.00026849,2]
[405352427,1771056640742,-500.0,0.00027436,7]
[405352429,1771056640751,-225.18586236,0.00027611,2]
[405352431,1771056640761,-18123.3792952,0.00027612,2]
[405352432,1771056640770,-165.1740565,0.00027613,2]
[405352433,1771056640780,-19778.0271512,0.000279,2]
[405352434,1771056640789,-3813.8081765,0.00028239,2]
[405352435,1771056640798,-168.0,0.00028339,2]
[405352436,1771056640808,-168.0,0.00028464,2]
[405352437,1771056640817,-168.0,0.00028622,2]
[405352438,1771056640827,-656.6853049,0.00028623,2]
[405352439,1771056640837,-2205.0383119,0.00028623,2]
[405352440,1771056640846,-168.0,0.00028779,2]
[405352441,1771056640856,-874.15618339,0.00028885,7]
[405352442,1771056640866,-354.06428482,0.0002899,2]
[405352443,1771056640875,-326088.49775944,0.00029,2]
[405352444,1771056640888,-7486.13989173,0.00029,2]
[405352717,1771056647010,-4074.31209926,0.00029,2]
[405352718,1771056647147,-4010.06322136,0.00029,2]
[405353061,1771056927651,460.7398964,0.00013273,2]
[405353062,1771056997925,500.0,0.00013273,2]
[405353063,1771056997984,577.27379565,0.00013821,2]
[405353064,1771057153499,500.0,0.00013273,2]
[405353065,1771057153545,1000.0,0.00013821,2]
[405353066,1771057153605,1000.0,0.00014368,2]
[405353067,1771057155781,500.0,0.00013273,2]
[405353068,1771057156555,500.0,0.00013699,2]
[405353069,1771057156738,1000.0,0.00014247,2]
[405353070,1771057156767,1500.0,0.00014795,2]
[405353071,1771057156812,710.51286641,0.00015342,2]
[405353072,1771057587069,185.46574592,0.00013273,2]
[405353073,1771057590958,537.59940133,0.00013273,2]
[405353074,1771057706658,3053.37893767,0.00017,2]
[405353153,1771057838281,-572.260004,0.0002146,2]
[405353154,1771057838303,-1695.24742572,0.0002146,2]
[405353155,1771057838316,-3287.2846,0.00021677,2]
[405353325,1771057846503,-1712.7154,0.00021677,2]
[405353326,1771057846513,-224.00663752,0.00021896,2]
[405353328,1771057881549,500.0,0.00013273,2]
[405353329,1771057926631,567.33320417,0.00014247,2]
[405353330,1771057926678,500.0,0.00013699,2]
[405353331,1771058110285,513.44319083,0.00013273,2]
[405353333,1771058350122,500.0,0.00013273,2]
[405353334,1771058350192,1000.00437204,0.00013821,2]
[405353335,1771058410470,500.0,0.00013699,2]
[405353336,1771058410517,1000.0,0.00014247,2]
[405353337,1771058411992,500.0,0.00013699,2]
[405353338,1771058412046,473.80922961,0.00014247,2]
[405353339,1771058515927,1000.0,0.00030137,120]
[405353340,1771058530940,500.0,0.00013699,2]
[405353341,1771058530973,1090.71458805,0.00014247,2]
[405353342,1771058534123,1000.0,0.00030137,120]
[405353343,1771058547597,1000.0,0.00030137,120]
[405353344,1771058577370,1000.0,0.00030137,120]
[405353345,1771058593067,1000.0,0.00030137,120]
[405353346,1771058607595,1000.0,0.00030137,120]
[405353347,1771058618236,1000.0,0.00030137,120]
[405353348,1771058634577,4946.1299621,0.000198,2]
[405353349,1771058642067,700.0,0.00030137,120]
[405353350,1771058714264,508.09640854,0.00013273,2]
[405353352,1771058819267,5000.0,0.000198,2]
[405353353,1771058841817,5000.0,0.000198,2]
[405353354,1771058916663,628.93116,0.00030136,120]
[405353356,1771059016366,3289.57634947,0.000198,2]
[405353357,1771059031366,1695.24742572,0.000198,2]
[405353382,1771059032491,-246.24013591,0.00020155,2]
[405353384,1771059032501,-300.0,0.00024685,2]
[405353385,1771059032511,-300.0,0.00024685,2]
[405353386,1771059032521,-300.0,0.00024685,2]
[405353387,1771059032531,-300.0,0.00024685,2]
[405353388,1771059032540,-617.8373759,0.00024685,2]
[405353389,1771059032552,-582.1626241,0.00024685,2]
[405353390,1771059032561,-1015.93570984,0.00024686,2]
[405353391,1771059032571,-1804.30182068,0.00024686,2]
[405353393,1771059032581,-209.60106413,0.00024686,2]
[405353395,1771059032590,-540.380215,0.00025395,2]
[405353396,1771059032600,-1741.19561211,0.00026,4]
[405353397,1771059032610,-500.0,0.00026018,7]
[405353398,1771059032620,-2955.0,0.00026734,2]
[405353399,1771059032634,-829.47378415,0.0002675,2]
[405353409,1771059038516,-3873.47893955,0.0002675,2]
[405353410,1771059038526,-1680.0,0.00026872,2]
[405353411,1771059038536,-2955.0,0.0002693,2]
[405353412,1771059038545,-973.22637286,0.00027253,2]
[405353434,1771059046500,-168.0,0.00026732,2]
[405353435,1771059046510,-332.60659941,0.00027253,2]
[405353436,1771059046609,-2286.97910015,0.00027253,2]
[405353439,1771059046618,-1427.48229071,0.00027301,7]
[405353448,1771059080213,512.26832279,0.00013273,2]
[405353458,1771059368382,500.0,0.00013699,2]
[405353459,1771059430082,500.00000003,0.00013699,2]
[405353460,1771059694504,500.0,0.00013699,2]
[405353461,1771059756876,-500.0,0.00024195,2]
[405353463,1771060034413,5000.0,0.000198,2]
[405353464,1771060050096,5000.0,0.000198,2]
[405353465,1771060057910,224.00663752,0.000198,2]
[405353466,1771060072794,491.70802356,0.000198,2]
[405353467,1771060095476,5000.0,0.000198,2]
[405353504,1771060237688,-413.0,0.0002,2]
[405353505,1771060237697,-260.36,0.0002,2]
[405353506,1771060237708,-144.65066743,0.00021384,2]
[405353507,1771060237718,-96.66466577,0.00021384,2]
[405353508,1771060237728,-347.87549658,0.00022279,2]
[405353509,1771060237737,-300.0,0.00022768,2]
[405353510,1771060237746,-300.0,0.00022768,2]
[405353511,1771060237755,-300.0,0.00022768,2]
[405353512,1771060237765,-300.0,0.00022768,2]
[405353513,1771060237775,-300.0,0.00022768,2]
[405353514,1771060237784,-1200.0,0.00022768,2]
[405353515,1771060237794,-338.18340145,0.00022998,2]
[405353516,1771060237803,-500.0,0.00022998,2]
[405353517,1771060237812,-500.0,0.00022998,2]
[405353518,1771060237822,-500.0,0.00022998,2]
[405353519,1771060237831,-500.0,0.00022998,2]
[405353520,1771060237840,-500.0,0.00022998,2]
[405353521,1771060237849,-500.0,0.00022998,2]
[405353522,1771060237859,-500.0,0.00022998,2]
[405353523,1771060237869,-500.0,0.00022998,2]
[405353524,1771060237878,-558.62936934,0.00022998,2]
[405353525,1771060237888,-500.0,0.00022998,2]
[405353526,1771060237897,-500.0,0.00022998,2]
[405353527,1771060237906,-500.0,0.00022998,2]
[405353528,1771060237915,-500.0,0.00022998,2]
[405353529,1771060237924,-500.0,0.00022998,2]
[405353530,1771060237934,-500.0,0.00022998,2]
[405353531,1771060237943,-500.0,0.00022998,2]
[405353532,1771060237952,-500.0,0.00022998,2]
[405353533,1771060237961,-500.0,0.00022998,2]
[405353534,1771060237971,-500.0,0.00022998,2]
[405353535,1771060237980,-500.0,0.00022998,2]
[405353536,1771060237990,-500.0,0.00022998,2]
[405353537,1771060237999,-500.0,0.00022998,2]
[405353538,1771060238008,-500.0,0.00022998,2]
[405353539,1771060238017,-500.0,0.00022998,2]
[405353540,1771060238027,-500.0,0.00022998,2]
[405353541,1771060238036,-500.0,0.00022998,2]
[405353542,1771060238046,-364.63963312,0.00022998,2]
[405353543,1771060238055,-500.0,0.00022998,2]
[405353544,1771060238065,-500.0,0.00022998,2]
[405353545,1771060238076,-500.0,0.00022998,2]
[405353546,1771060238085,-500.0,0.00022998,2]
[405353547,1771060238095,-500.0,0.00022998,2]
[405353548,1771060238105,-500.0,0.00022998,2]
[405353549,1771060238114,-500.0,0.00022998,2]
[405353550,1771060238124,-298.8103032,0.00022998,2]
[405353551,1771060238134,-500.0,0.00022998,2]
[405353552,1771060238143,-500.0,0.00022998,2]
[405353553,1771060238153,-500.0,0.00022998,2]
[405353554,1771060238163,-500.0,0.00022998,2]
[405353555,1771060238176,-500.0,0.00022998,2]
[405353556,1771060238186,-500.0,0.00022998,2]
[405353557,1771060238195,-500.0,0.00022998,2]
[405353558,1771060238204,-500.0,0.00022998,2]
[405353559,1771060238214,-500.0,0.00022998,2]
[405353560,1771060238224,-500.0,0.00022998,2]
[405353561,1771060238234,-500.0,0.00022998,2]
[405353562,1771060238244,-390.35631697,0.00022998,2]
[405353563,1771060238255,-500.0,0.00022998,2]
[405353564,1771060238265,-500.0,0.00022998,2]
[405353565,1771060238274,-500.0,0.00022998,2]
[405353566,1771060238284,-500.0,0.00022998,2]
[405353567,1771060238293,-500.0,0.00022998,2]
[405353568,1771060238302,-500.0,0.00022998,2]
[405353569,1771060238311,-500.0,0.00022998,2]
[405353570,1771060238320,-500.0,0.00022998,2]
[405353571,1771060238330,-500.0,0.00022998,2]
[405353572,1771060238339,-500.0,0.00022999,2]
[405353573,1771060238348,-500.0,0.00023,2]
[405353574,1771060238357,-500.0,0.00023,2]
[405353575,1771060238367,-50000.0,0.00023,2]
[405353576,1771060238377,-500.0,0.00023273,2]
[405353577,1771060238387,-404.02038889,0.00023366,2]
[405353578,1771060238397,-461.27584972,0.00023366,2]
[405353579,1771060238406,-337.67119825,0.00023366,2]
[405353580,1771060238416,-500.0,0.00023547,2]
[405353581,1771060238425,-500.0,0.00023821,2]
[405353582,1771060238436,-500.0,0.00024095,2]
[405353583,1771060238445,-225.65676736,0.00024206,2]
[405353584,1771060238454,-560.98465938,0.00024369,2]
[405353585,1771060238464,-500.0,0.00024686,2]
[405353586,1771060238473,-300.0,0.00024722,2]
[405353587,1771060238483,-236.78758401,0.00024774,2]
[405353588,1771060238493,-1680.0,0.00024837,2]
[405353589,1771060238502,-201.73945189,0.00026231,2]
[405353590,1771060238512,-362.76788238,0.00026231,2]
[405353591,1771060238527,-168.0,0.00026596,2]
[405353592,1771060238537,-331.04424113,0.0002663,5]
[405353593,1771060238547,-500.0,0.0002663,2]
[405353594,1771060238556,-500.0,0.0002663,2]
[405353595,1771060238565,-384.49,0.0002663,2]
[405353596,1771060238575,-500.0,0.00026732,2]
[405353597,1771060238584,-523.81410912,0.00026732,2]
[405353598,1771060238594,-168.0,0.00026741,2]
[405353599,1771060238603,-175.903003,0.00026753,2]
[405353600,1771060238613,-167.45,0.00026754,2]
[405353601,1771060238622,-168.0,0.00026854,2]
[405353602,1771060238631,-168.0,0.00026898,2]
[405353603,1771060238640,-160.0,0.00027093,2]
[405353604,1771060238650,-1527.51770929,0.00027301,7]
[405353605,1771060238659,-420.0,0.00027309,2]
[405353606,1771060238668,-135.85877185,0.00027419,2]
[405353630,1771060245747,-32.14122815,0.00027419,2]
[405353631,1771060245758,-168.0,0.00027439,2]
[405353632,1771060245769,-962.13772776,0.00027452,2]
[405353633,1771060245781,-1993.86227224,0.00027452,2]
[405353634,1771060245791,-383.29,0.00027673,10]
[405353635,1771060245800,-168.0,0.00027683,2]
[405353636,1771060245809,-151.0,0.00027828,7]
[405353637,1771060245819,-306.5,0.00028246,10]
[405353638,1771060245829,-168.0,0.0002845,2]
[405353639,1771060245838,-246.66372956,0.00028746,2]
[405353640,1771060245848,-475.78347232,0.00028759,2]
[405353641,1771060305214,296.51320183,0.00013699,2]
[405353642,1771060688055,21929.0597417,0.00027911,120]
[405353643,1771060732842,1000.0,0.00030137,120]
[405353644,1771060735443,1000.0,0.00030137,120]
[405353645,1771060737247,1000.0,0.00030137,120]
[405353646,1771060883216,500.0,0.00013273,2]
[405353647,1771060983393,3774.0,0.0003,120]
[405353751,1771061437744,-379.06990659,0.00021904,2]
[405353754,1771061445112,-626.16276247,0.00021904,2]
[405353766,1771061445758,-3994.76733094,0.00021904,2]
[405353767,1771061445767,-5000.0,0.00022125,2]
[405353768,1771061445777,-300.0,0.00023469,2]
[405353769,1771061445787,-182.25,0.000235,2]
[405353770,1771061445796,-701.6595918,0.00023795,2]
[405353771,1771061445805,-31264.31330915,0.0002465,2]
[405353772,1771061445818,-3687.59882871,0.0002465,2]
[405353775,1771061557583,-4010.06322136,0.00024403,2]
[405353845,1771062637922,-5000.0,0.00022278,2]
[405353847,1771062637932,-5000.0,0.00022503,2]
[405353849,1771062637941,-150.0,0.00022617,2]
[405353851,1771062637951,-300.0,0.00022729,2]
[405353853,1771062637960,-300.0,0.00022729,2]
[405353855,1771062637969,-300.0,0.00022729,2]
[405353857,1771062637978,-300.0,0.00022729,2]
[405353859,1771062637987,-1200.0,0.00022729,2]
[405353861,1771062637997,-300.0,0.00023189,2]
[405353863,1771062638006,-242.22274497,0.00024617,2]
[405353865,1771062638015,-500.0,0.00024641,2]
[405353867,1771062638028,-500.0,0.00024641,2]
[405353869,1771062638038,-500.0,0.00024641,2]
[405353871,1771062638048,-487.81736855,0.00024641,2]
[405353873,1771062638057,-500.0,0.00024641,2]
[405353875,1771062638066,-500.0,0.00024641,2]
[405353877,1771062638078,-500.0,0.00024641,2]
[405353879,1771062638087,-500.0,0.00024641,2]
[405353881,1771062638098,-500.0,0.00024641,2]
[405353883,1771062638108,-379.88103032,0.00024641,2]
[405353885,1771062638117,-500.0,0.00024641,2]
[405353887,1771062638126,-500.0,0.00024641,2]
[405353889,1771062638136,-171.22996165,0.00024641,2]
[405353891,1771062638146,-500.0,0.00024641,2]
[405353893,1771062638155,-500.0,0.00024641,2]
[405353895,1771062638164,-500.0,0.00024641,2]
[405353897,1771062638174,-500.0,0.00024641,2]
[405353899,1771062638183,-500.0,0.00024641,2]
[405353901,1771062638192,-500.0,0.00024641,2]
[405353903,1771062638201,-434.96493803,0.00024641,2]
[405353905,1771062638211,-1617.90845025,0.00024643,2]
[405353907,1771062638222,-487.07032535,0.00024643,2]
[405353909,1771062638232,-868.33030196,0.0002465,2]
[405353911,1771062638241,-300.0,0.00024658,2]
[405353928,1771062638382,-5047.93901011,0.00024774,2]
[405353930,1771062638392,-218.3831514,0.00025021,2]
[405353932,1771062638401,-336.73289161,0.00025094,2]
[405353934,1771062638411,-578.739032,0.00025096,2]
[405353936,1771062638420,-973.6491666,0.00025573,7]
[405353938,1771062638430,-203.89260937,0.00026735,2]
[405353940,1771062638439,-366.63969017,0.00026735,2]
[405353941,1771062638449,-298.74708403,0.00026735,2]
[405353944,1771062638459,-180.08927315,0.00027082,2]
[405353945,1771062638467,-303.89816465,0.00027082,2]
[405353947,1771062638477,-175.903003,0.00027083,2]
[405353949,1771062638486,-658.24,0.0002739,2]
[405353951,1771062638495,-1395.213,0.0002739,2]
[405353953,1771062638505,-208.534,0.0002739,2]
[405353955,1771062638514,-1000.0,0.000277,2]
[405353957,1771062638523,-1000.0,0.000277,2]
[405353959,1771062638533,-1000.0,0.000277,2]
[405353961,1771062638542,-804.25538467,0.000277,2]
[405353997,1771062846882,500.0,0.00029852,120]
[405353998,1771062847035,502.62497196,0.00029907,120]
[405353999,1771062930129,358.90819889,0.00013699,2]
[405354000,1771063292630,151.67965443,0.00013273,2]
[405354001,1771063338282,-1146.3908198,0.0002209,2]
[405354002,1771063582782,500.0,0.00013699,2]
[405354003,1771063582842,1000.0,0.00014247,2]
[405354004,1771063582894,500.40575895,0.00014795,2]
[405354030,1771063838172,-5000.0,0.0002018,2]